bitfinex-derivatives/quotes_BNBF0:USTF0_20250521
["timestamp","ask_amount","ask_price","bid_price","bid_amount"]
[1747815796804,1.56989675,652.58,651.54,2.935]
[1747815799507,1.303,652.58,651.54,2.935]
[1747815800814,1.56989675,652.58,651.54,2.935]
[1747815802517,1.303,652.58,651.54,2.935]
[1747815808820,1.56989675,652.58,651.54,2.935]
[1747815811525,1.303,652.58,651.54,2.935]
[1747815811829,1.56989675,652.58,651.54,2.935]
[1747815814529,1.303,652.58,651.54,2.935]
[1747815814829,1.56989675,652.58,651.54,2.935]
[1747815817529,1.303,652.58,651.54,2.935]
[1747815819125,1.303,652.58,651.55,0.55289359]
[1747815820027,1.303,652.58,651.56,0.55289359]
[1747815821442,1.303,652.58,651.54,1.249]
[1747815821932,1.303,652.58,651.54,2.609]
[1747815822835,1.303,652.58,651.55,0.55297506]
[1747815824239,1.303,652.58,651.56,0.55297506]
[1747815825634,1.303,652.58,651.55,0.55297506]
[1747815827240,1.303,652.58,651.54,2.609]
[1747815830138,1.303,652.58,651.55,0.55302927]
[1747815831337,1.303,652.58,651.54,1.36]
[1747815833038,1.303,652.58,651.54,2.958]
[1747815848840,0.26692336,652.57,651.54,2.958]
[1747815850548,3.68378074,652.73,651.54,2.958]
[1747815851847,0.26688959,652.72,651.54,2.958]
[1747815852043,1.79888959,652.72,651.54,2.958]
[1747815853550,1.532,652.72,651.54,2.958]
[1747815853844,0.26689061,652.71,651.54,2.958]
[1747815856550,1.532,652.72,651.54,2.958]
[1747815857851,0.26694998,652.71,651.54,2.958]
[1747815859554,1.532,652.72,651.54,2.958]
[1747815860953,0.26694793,652.71,651.54,2.958]
[1747815865558,3.68378074,652.82,651.54,2.958]
[1747815866865,0.2669377,652.81,651.54,2.958]
[1747815868563,5.20178074,652.82,651.54,2.958]
[1747815869863,0.2669377,652.81,651.54,2.958]
[1747815871565,5.20178074,652.82,651.54,2.958]
[1747815872170,0.26692336,652.81,651.54,2.958]
[1747815874571,5.20178074,652.82,651.54,2.958]
[1747815874872,0.26692336,652.8,651.54,2.958]
[1747815879475,3.68378074,652.59,651.54,2.958]
[1747815884176,0.26694077,652.58,651.54,2.958]
[1747815886577,3.68378074,652.59,651.54,2.958]
[1747815886876,0.26694077,652.57,651.54,2.958]
[1747815889575,3.68378074,652.59,651.54,2.958]
[1747815890879,0.26694077,652.58,651.54,2.958]
[1747815891978,3.68378074,652.36,651.54,2.958]
[1747815893878,3.95074506,652.36,651.54,2.958]
[1747815894085,1.532,652.35,651.54,2.958]
[1747815923006,3.68378074,652.77,651.54,2.958]
[1747815923605,0.26689777,652.76,651.54,2.958]
[1747815925607,3.68378074,652.77,651.54,2.958]
[1747815926208,0.26687731,652.76,651.54,2.958]
[1747815927106,3.68378074,652.74,651.54,2.958]
[1747815929206,0.26691108,652.73,651.54,2.958]
[1747815931710,3.68378074,652.74,651.54,2.958]
[1747815932911,0.26691108,652.73,651.54,2.958]
[1747815934609,3.68378074,652.74,651.54,2.958]
[1747815934908,0.26691108,652.72,651.54,2.958]
[1747815937516,3.68378074,652.74,651.54,2.958]
[1747815937816,0.26691517,652.71,651.54,2.958]
[1747815940525,3.68378074,652.58,651.54,2.958]
[1747815941826,0.26692746,652.57,651.54,2.958]
[1747815946629,3.68378074,652.58,651.54,2.958]
[1747815947925,0.26692746,652.57,651.54,2.958]
[1747815949630,3.68378074,652.58,651.54,2.958]
[1747815951033,0.26692746,652.57,651.54,2.958]
[1747815951835,1.73892746,652.57,651.54,2.958]
[1747815952635,1.472,652.57,651.54,2.958]
[1747815954037,0.26692029,652.56,651.54,2.958]
[1747815955641,1.472,652.57,651.54,2.958]
[1747815962743,1.472,652.57,651.55,0.55332111]
[1747815963736,1.472,652.57,651.56,0.55332111]
[1747815964639,1.472,652.57,651.29,1.12315982]
[1747815964839,1.472,652.57,651.3,0.64752167]
[1747815965039,1.472,652.57,651.31,0.64752167]
[1747815965243,1.472,652.57,651.32,1.20045477]
[1747815965437,1.472,652.57,651.33,0.64752167]
[1747815965641,1.472,652.57,651.34,1.20045477]
[1747815965838,1.472,652.57,651.35,1.84797644]
[1747815966138,1.472,652.57,651.36,0.64735808]
[1747815966342,1.472,652.57,651.37,0.64735808]
[1747815966538,1.472,652.57,651.38,1.84781285]
[1747815966743,1.472,652.57,651.39,0.64735808]
[1747815967045,1.472,652.57,651.4,0.64735808]
[1747815967342,1.472,652.57,651.37,1.488]
[1747815967343,1.472,652.57,651.41,2.40113396]
[1747815967540,1.472,652.57,651.42,0.64735808]
[1747815967745,1.472,652.57,651.43,1.84781285]
[1747815967939,1.472,652.57,651.44,0.64701819]
[1747815968143,1.472,652.57,651.45,0.64701819]
[1747815968343,1.472,652.57,651.46,2.40079407]
[1747815968541,1.472,652.57,651.47,0.64701819]
[1747815968738,1.472,652.57,651.48,1.84747296]
[1747815968939,1.472,652.57,651.49,0.64701819]
[1747815969140,1.472,652.57,651.5,0.64701819]
[1747815969345,1.472,652.57,651.46,0.55332111]
[1747815969744,1.472,652.57,651.47,1.19985561]
[1747815969945,1.472,652.57,651.48,0.6465345]
[1747815970144,1.472,652.57,651.49,0.6465345]
[1747815970445,1.472,652.57,651.47,0.55332111]
[1747815970446,1.472,652.57,651.5,0.6465345]
[1747815970645,1.472,652.57,651.51,0.6465345]
[1747815970941,1.472,652.57,651.52,0.6465345]
[1747815971142,1.472,652.57,651.53,0.55332111]
[1747815972950,1.472,652.57,651.38,0.55332111]
[1747815973150,1.472,652.57,651.39,0.64579546]
[1747815973351,1.472,652.57,651.4,0.64579546]
[1747815973550,1.472,652.57,651.41,1.84216341]
[1747815973751,1.472,652.57,651.42,1.84216341]
[1747815974051,1.472,652.57,651.43,0.64579546]
[1747815974250,1.472,652.57,651.44,1.84216341]
[1747815974451,1.472,652.57,651.45,0.64579546]
[1747815974651,1.472,652.57,651.46,2.39548452]
[1747815974853,1.472,652.57,651.47,0.64579546]
[1747815975153,1.472,652.57,651.48,0.64579546]
[1747815975345,1.472,652.57,651.49,0.64579546]
[1747815975550,1.472,652.57,651.5,0.64527549]
[1747815975747,1.472,652.57,651.49,0.55332111]
[1747815977056,1.472,652.57,651.5,0.55332111]
[1747815978656,1.472,652.57,651.38,0.56983871]
[1747815978657,1.472,652.57,651.39,1.12315982]
[1747815978853,1.472,652.57,651.4,1.84026483]
[1747815979050,1.472,652.57,651.41,0.64492743]
[1747815979358,1.472,652.57,651.42,1.1953374]
[1747815979552,1.472,652.57,651.43,1.84026483]
[1747815979752,1.472,652.57,651.44,0.64492743]
[1747815979952,1.472,652.57,651.45,1.84026483]
[1747815980155,1.472,652.57,651.46,1.84026483]
[1747815980353,1.472,652.57,651.47,0.64492743]
[1747815980556,1.472,652.57,651.48,0.64492743]
[1747815980755,1.472,652.57,651.44,0.55332111]
[1747815980957,1.472,652.57,651.45,0.64472489]
[1747815981158,1.472,652.57,651.46,0.64472489]
[1747815981359,1.472,652.57,651.47,0.64472489]
[1747815981559,1.472,652.57,651.48,0.64472489]
[1747815981859,1.472,652.57,651.45,0.55332111]
[1747815982053,1.472,652.57,651.46,0.64463703]
[1747815982255,1.472,652.57,651.47,1.83925072]
[1747815982458,1.472,652.57,651.48,0.55332111]
[1747815984261,1.472,652.57,651.49,0.55332111]
[1747815985762,1.472,652.57,651.5,0.55332111]
[1747815987563,1.472,652.57,651.41,0.55332111]
[1747815988859,1.472,652.57,651.42,0.55332111]
[1747815990165,1.472,652.57,651.43,0.55332111]
[1747815991364,1.472,652.57,651.44,0.55332111]
[1747815992865,1.472,652.57,651.38,0.55332111]
[1747815993970,1.472,652.57,651.39,0.55332111]
[1747815995269,1.472,652.57,651.4,0.55332111]
[1747815996876,1.472,652.57,651.38,0.55332111]
[1747815998073,1.472,652.57,651.39,2.35032111]
[1747816000276,1.472,652.57,651.4,0.55332111]
[1747816013183,1.472,652.57,651.41,0.55332111]
[1747816014683,1.472,652.57,651.42,0.55332111]
[1747816016083,1.472,652.57,651.43,0.55332111]
[1747816018185,1.472,652.57,651.44,0.55332111]
[1747816019785,1.472,652.57,651.45,0.55332111]
[1747816021491,1.472,652.57,651.46,0.55332111]
[1747816022491,1.472,652.57,651.4,0.55332111]
[1747816023889,1.472,652.57,651.39,1.797]
[1747816025194,0.26694793,652.56,651.39,1.797]
[1747816027698,3.68378074,652.73,651.39,1.797]
[1747816028198,0.2668988,652.72,651.39,1.797]
[1747816029100,1.532,652.71,651.39,1.797]
[1747816029399,1.532,652.71,651.4,1.832]
[1747816032005,0.26689982,652.7,651.4,1.832]
[1747816033706,1.532,652.71,651.4,1.832]
[1747816034006,0.26689982,652.69,651.4,1.832]
[1747816036806,1.532,652.71,651.4,1.832]
[1747816038008,0.26692029,652.7,651.4,1.832]
[1747816039709,1.532,652.71,651.4,1.832]
[1747816040713,0.26691415,652.7,651.4,1.832]
[1747816042713,1.532,652.71,651.4,1.832]
[1747816042909,1.532,652.71,651.4,3.785]
[1747816043110,0.2669121,652.69,651.4,3.785]
[1747816045714,1.532,652.71,651.4,3.785]
[1747816047014,0.26689368,652.7,651.4,3.785]
[1747816048714,1.532,652.71,651.4,3.785]
[1747816049115,0.26689368,652.69,651.4,3.785]
[1747816051415,0.26689368,652.69,651.41,0.55553205]
[1747816053322,0.26689368,652.69,651.42,0.55553205]
[1747816054917,1.532,652.71,651.43,0.55553205]
[1747816055118,0.26687731,652.68,651.43,0.55553205]
[1747816056219,0.26687731,652.68,651.41,0.55553205]
[1747816057315,0.26687731,652.68,651.41,1.90353205]
[1747816057614,0.26687731,652.68,651.42,0.55553205]
[1747816057821,3.68378074,652.75,651.42,0.55553205]
[1747816058020,3.68378074,652.75,651.43,0.64627049]
[1747816058213,3.68378074,652.75,651.44,0.64627049]
[1747816058415,3.68378074,652.75,651.42,0.55553205]
[1747816058614,3.68378074,653.09,651.45,0.55553205]
[1747816058817,3.68378074,653.09,651.46,0.64622506]
[1747816059020,0.26685479,652.76,651.47,0.64622061]
[1747816059221,1.531,653.08,651.45,0.55553205]
[1747816059423,1.531,653.08,651.46,0.64617338]
[1747816059623,1.531,653.08,651.47,0.64620668]
[1747816059821,1.531,653.08,651.45,0.55553205]
[1747816060122,0.26681183,653.07,651.46,1.20173822]
[1747816060318,0.26681183,653.07,651.46,0.55553205]
[1747816060723,1.531,653.08,651.46,0.55553205]
[1747816061327,1.531,653.08,651.47,0.55553205]
[1747816061923,0.26681183,653.07,651.47,0.55553205]
[1747816062324,0.26681183,653.07,651.48,0.55553205]
[1747816063722,1.531,653.08,651.48,0.55553205]
[1747816064217,1.531,653.08,651.49,0.55553205]
[1747816064423,0.26681081,653.07,651.49,0.55553205]
[1747816065223,0.26681081,653.07,651.5,0.55553205]
[1747816066824,1.531,653.08,651.5,0.55553205]
[1747816067121,0.26680876,653.06,651.51,0.55553205]
[1747816068225,0.26680876,653.06,651.52,0.55553205]
[1747816069721,1.531,653.08,651.53,0.55553205]
[1747816070128,0.26680262,653.05,651.53,0.55553205]
[1747816071528,0.26680262,653.05,651.54,0.55553205]
[1747816072830,3.68378074,652.81,651.55,0.55553205]
[1747816074628,3.68378074,652.81,651.56,0.55553205]
[1747816076229,3.68378074,652.81,651.57,0.55553205]
[1747816076929,0.26682513,652.8,651.57,0.55553205]
[1747816077728,0.26682513,652.8,651.58,0.55553205]
[1747816078730,3.68378074,652.81,651.58,0.55553205]
[1747816079523,3.68378074,652.81,651.41,1.348]
[1747816079728,3.68378074,652.81,651.42,0.64519336]
[1747816079928,3.68378074,652.81,651.43,0.64519336]
[1747816080125,0.26684149,652.8,651.44,0.64519336]
[1747816080324,0.26684149,652.8,651.41,1.348]
[1747816080630,0.26684149,652.8,651.42,0.55391859]
[1747816081830,3.68378074,652.81,651.42,0.55391859]
[1747816082027,3.68378074,652.81,651.43,0.55391859]
[1747816082327,0.26686707,652.8,651.43,0.55391859]
[1747816083933,0.26686707,652.8,651.42,0.55391859]
[1747816084231,0.26686707,652.8,651.42,2.14091859]
[1747816084732,3.68378074,652.81,651.42,2.14091859]
[1747816085533,3.68378074,652.81,651.42,1.587]
[1747816086137,0.26686707,652.8,651.42,1.587]
[1747816086635,0.26686707,652.8,651.43,0.55383635]
[1747816087029,0.26686707,652.8,651.43,1.91683635]
[1747816087734,3.68378074,652.81,651.43,1.91683635]
[1747816088736,3.68378074,652.93,651.44,0.55383635]
[1747816089135,0.26686605,652.8,651.44,0.55383635]
[1747816089333,3.68378074,652.93,651.44,0.55383635]
[1747816090138,0.26685275,652.92,651.44,0.55383635]
[1747816090739,3.68378074,652.93,651.44,0.55383635]
[1747816091035,1.531,652.92,651.44,0.55383635]
[1747816091939,0.26685377,652.91,651.44,0.55383635]
[1747816093739,1.531,652.92,651.44,0.55383635]
[1747816095045,0.26684763,652.91,651.44,0.55383635]
[1747816096845,1.531,652.92,651.44,0.55383635]
[1747816097541,1.531,652.92,651.43,1.363]
[1747816097943,0.26688754,652.91,651.43,1.363]
[1747816099948,1.531,652.92,651.43,1.363]
[1747816100948,0.26691517,652.91,651.43,1.363]
[1747816101843,5.15729304,652.89,651.43,1.363]
[1747816103947,0.26691927,652.88,651.43,1.363]
[1747816104547,0.26691927,652.88,651.43,3.01]
[1747816104747,3.68378074,652.56,651.43,3.01]
[1747816107448,3.68378074,652.75,651.43,3.01]
[1747816109243,0.26688242,652.74,651.43,3.01]
[1747816112053,1.532,652.73,651.43,3.01]
[1747816112248,1.532,652.73,651.44,0.55340534]
[1747816113247,1.532,652.73,651.45,0.55340534]
[1747816114654,1.532,652.73,651.44,0.55340534]
[1747816116155,1.532,652.73,651.45,0.55340534]
[1747816117455,1.532,652.73,651.46,0.55340534]
[1747816118855,1.532,652.73,651.47,0.55340534]
[1747816119057,0.26687117,652.72,651.47,0.55340534]
[1747816120057,0.26687117,652.72,651.43,3.01]
[1747816120058,0.26687117,652.72,651.48,0.55340534]
[1747816120758,1.532,652.73,651.48,0.55340534]
[1747816120957,1.532,652.73,651.49,0.55340534]
[1747816121853,1.532,652.73,651.5,0.55340534]
[1747816122058,0.2668681,652.72,651.5,0.55340534]
[1747816122754,0.2668681,652.72,651.43,3.01]
[1747816124260,0.2668681,652.72,651.44,0.55338589]
[1747816125857,0.2668681,652.72,651.43,1.647]
[1747816126762,1.532,652.73,651.43,1.647]
[1747816126963,1.532,652.73,651.43,3.163]
[1747816127964,0.26690289,652.72,651.43,3.163]
[1747816129667,1.532,652.73,651.43,3.163]
[1747816130361,0.26690494,652.72,651.43,3.163]
[1747816132165,0.26690494,652.72,651.44,0.55321246]
[1747816133268,0.26690494,652.72,651.43,3.163]
[1747816135066,1.36,652.71,651.43,3.163]
[1747816136268,0.26690494,652.7,651.43,3.163]
[1747816138766,1.36,652.71,651.43,3.163]
[1747816139063,0.26690494,652.69,651.43,3.163]
[1747816139668,0.26690494,652.69,651.44,0.55359241]
[1747816141162,0.26690494,652.69,651.45,0.55359241]
[1747816141768,1.36,652.71,651.45,0.55359241]
[1747816142366,1.36,652.71,651.46,0.55359241]
[1747816142663,0.26687424,652.7,651.46,0.55359241]
[1747816143268,1.36,652.71,651.47,0.64557182]
[1747816143464,1.36,652.71,651.48,0.64557182]
[1747816143764,1.36,652.71,651.49,1.84583299]
[1747816144065,1.36,652.71,651.5,0.64557182]
[1747816144268,1.36,652.71,651.51,0.64557182]
[1747816144468,1.36,652.71,651.52,0.64557182]
[1747816144663,1.36,652.71,651.53,0.64557182]
[1747816144869,1.36,652.71,651.48,0.55359241]
[1747816145071,1.36,652.71,651.54,0.55359241]
[1747816146770,1.36,652.71,651.55,0.55359241]
[1747816147570,1.36,652.71,651.44,0.55359241]
[1747816147770,1.36,652.71,651.45,0.64515186]
[1747816147971,1.36,652.71,651.46,0.64515186]
[1747816148168,1.36,652.71,651.47,0.64515186]
[1747816148365,1.36,652.71,651.48,1.84445654]
[1747816148568,1.36,652.71,651.49,0.64515186]
[1747816148871,1.36,652.71,651.5,0.64504639]
[1747816149171,1.36,652.71,651.51,0.64504639]
[1747816149372,1.36,652.71,651.44,0.55359241]
[1747816149572,1.36,652.71,651.45,0.64491299]
[1747816149873,1.36,652.71,651.51,0.55359241]
[1747816151074,1.36,652.71,651.52,0.55359241]
[1747816152172,1.36,652.71,651.53,0.55359241]
[1747816152870,1.36,652.71,651.54,0.55359241]
[1747816154374,1.36,652.71,651.55,0.55359241]
[1747816155078,0.26682103,652.88,651.55,0.55359241]
[1747816155775,0.26682103,652.88,651.56,0.55359241]
[1747816156782,3.68378074,653.09,651.56,0.55359241]
[1747816157082,3.68378074,653.09,651.57,0.55359241]
[1747816157781,1.219,653.08,651.57,0.55359241]
[1747816158082,1.48581899,653.08,651.57,0.55359241]
[1747816158482,1.48581899,653.08,651.43,3.163]
[1747816159784,1.219,653.08,651.43,3.163]
[1747816160485,1.219,653.08,651.44,0.55247112]
[1747816160981,0.26684559,653.07,651.44,0.55247112]
[1747816161885,0.26684559,653.07,651.45,0.55247112]
[1747816162788,1.219,653.08,651.45,0.55247112]
[1747816163089,1.219,653.08,651.44,0.55247112]
[1747816163991,0.26684559,653.07,651.44,0.55247112]
[1747816164387,0.26684559,653.07,651.43,1.516]
[1747816164988,0.26684559,653.07,651.43,3.275]
[1747816165895,3.68378074,652.69,651.43,3.275]
[1747816166995,0.2668988,652.68,651.43,3.275]
[1747816168799,3.68378074,652.69,651.43,3.275]
[1747816169298,3.68378074,652.69,651.44,0.55234858]
[1747816170201,0.26689573,652.68,651.44,0.55234858]
[1747816170399,0.26689573,652.68,651.43,1.759]
[1747816171803,3.68378074,652.69,651.43,1.759]
[1747816172402,3.68378074,652.69,651.43,3.069]
[1747816172603,0.26688856,652.68,651.43,3.069]
[1747816173307,0.26688856,652.68,651.44,0.55242472]
[1747816174804,3.68378074,652.69,651.45,0.55242472]
[1747816175106,3.95065395,652.69,651.45,0.55242472]
[1747816176106,3.95065395,652.69,651.46,0.55242472]
[1747816177708,3.95065395,652.69,651.43,3.069]
[1747816177709,3.68378074,652.97,651.47,0.55242472]
[1747816178011,0.26686503,652.72,651.47,0.55242472]
[1747816178308,3.68378074,652.97,651.47,0.55242472]
[1747816178809,1.531,652.96,651.47,0.55242472]
[1747816179009,1.79783536,652.96,651.48,0.55242472]
[1747816180609,1.79783536,652.96,651.49,0.55242472]
[1747816180804,1.531,652.96,651.49,0.55242472]
[1747816182009,0.26683433,652.95,651.49,0.55242472]
[1747816182505,0.26683433,652.95,651.5,0.55242472]
[1747816183813,1.531,652.96,651.5,0.55242472]
[1747816184311,1.531,652.96,651.51,0.55242472]
[1747816185007,0.26683229,652.95,651.51,0.55242472]
[1747816186113,0.26683229,652.95,651.52,0.55242472]
[1747816186815,1.531,652.96,651.52,0.55242472]
[1747816187113,0.26683126,652.94,651.52,0.55242472]
[1747816188316,3.68378074,652.92,651.53,0.55242472]
[1747816188916,3.68378074,652.92,651.54,0.64431744]
[1747816189112,3.68378074,652.92,651.53,0.55242472]
[1747816189311,3.68378074,652.92,651.54,0.64431395]
[1747816189512,3.68378074,652.92,651.53,0.55242472]
[1747816189712,3.68378074,652.92,651.54,0.64472543]
[1747816189912,3.68378074,652.92,651.53,0.55242472]
[1747816190113,3.68378074,652.92,651.54,0.64472469]
[1747816190311,3.68378074,652.92,651.54,0.55242472]
[1747816191119,0.26680467,652.91,651.54,0.55242472]
[1747816192019,0.26680467,652.91,651.55,0.55242472]
[1747816192819,1.531,652.96,651.55,0.55242472]
[1747816193216,1.531,652.96,651.56,0.55242472]
[1747816194019,0.2668374,652.95,651.56,0.55242472]
[1747816195121,0.2668374,652.95,651.43,3.069]
[1747816195717,1.531,652.96,651.43,3.069]
[1747816196221,1.531,652.96,651.44,0.55131847]
[1747816196421,0.26687117,652.95,651.44,0.55131847]
[1747816197824,0.26687117,652.95,651.45,0.55131847]
[1747816198821,1.531,652.96,651.45,0.55131847]
[1747816199420,0.26686912,652.95,651.45,0.55131847]
[1747816199626,0.26686912,652.95,651.46,0.55131847]
[1747816201531,0.26686912,652.95,651.44,0.55131847]
[1747816201729,1.531,652.96,651.44,0.55131847]
[1747816202327,0.26687424,652.95,651.44,0.55131847]
[1747816202827,0.26687424,652.95,651.43,1.31]
[1747816203727,0.26687424,652.95,651.43,2.95]
[1747816204735,1.531,652.96,651.43,2.95]
[1747816205033,0.26686503,652.94,651.43,2.95]
[1747816206738,3.68378074,652.85,651.43,2.95]
[1747816208140,0.26687628,652.84,651.43,2.95]
[1747816208441,1.63987628,652.84,651.43,2.95]
[1747816213745,1.373,652.84,651.43,2.95]
[1747816214041,0.26689368,652.83,651.43,2.95]
[1747816216750,1.373,652.84,651.43,2.95]
[1747816217246,0.26689368,652.82,651.43,2.95]
[1747816219750,1.373,652.84,651.43,2.95]
[1747816220151,0.26689368,652.81,651.43,2.95]
[1747816221955,3.68378074,652.63,651.43,2.95]
[1747816226154,0.26694589,652.62,651.43,2.95]
[1747816228757,3.68378074,652.63,651.43,2.95]
[1747816229169,0.26694589,652.61,651.43,2.95]
[1747816236966,3.68378074,652.48,651.43,2.95]
[1747816238069,1.79895715,652.47,651.43,2.95]
[1747816246772,1.532,652.47,651.43,2.95]
[1747816250079,3.68378074,652.59,651.43,2.95]
[1747816250279,0.26693974,652.48,651.43,2.95]
[1747816250479,3.68378074,652.59,651.43,2.95]
[1747816251381,0.26692746,652.58,651.43,2.95]
[1747816252582,1.51492746,652.58,651.43,2.95]
[1747816252782,1.248,652.58,651.43,2.95]
[1747816253081,0.26692848,652.57,651.43,2.95]
[1747816258886,1.248,652.58,651.43,2.95]
[1747816260185,0.2669121,652.57,651.43,2.95]
[1747816261789,1.248,652.58,651.43,2.95]
[1747816273997,1.248,652.58,651.44,0.54888283]
[1747816275194,1.248,652.58,651.45,0.54888283]
[1747816276300,1.248,652.58,651.46,1.557]
[1747816277599,1.248,652.58,651.47,1.642]
[1747816277796,1.248,652.58,651.48,0.54859584]
[1747816279702,1.248,652.58,651.49,0.54859584]
[1747816279902,1.248,652.58,651.5,0.6449701]
[1747816280104,1.248,652.58,651.49,0.54859584]
[1747816281304,1.248,652.58,651.48,0.54859584]
[1747816282104,1.248,652.58,651.49,0.6445531]
[1747816282404,1.248,652.58,651.48,0.54859584]
[1747816282604,1.248,652.58,651.49,0.64436246]
[1747816282803,1.248,652.58,651.5,0.64436031]
[1747816283000,1.248,652.58,651.51,0.64436031]
[1747816283198,1.248,652.58,651.52,0.64436031]
[1747816283497,1.248,652.58,651.49,0.54859584]
[1747816283698,1.248,652.58,651.5,0.64416501]
[1747816283897,1.248,652.58,651.51,0.64416501]
[1747816284098,1.248,652.58,651.52,1.19276085]
[1747816284302,1.248,652.58,651.52,0.54859584]
[1747816284804,1.248,652.58,651.53,0.6439492]
[1747816285005,1.248,652.58,651.52,0.54859584]
[1747816285206,1.248,652.58,651.53,0.64394509]
[1747816285407,1.248,652.58,651.54,0.64394425]
[1747816285708,1.248,652.58,651.52,0.54859584]
[1747816285911,1.248,652.58,651.53,0.6437616]
[1747816286204,1.248,652.58,651.54,1.19235744]
[1747816286403,1.248,652.58,651.55,0.64376022]
[1747816286608,1.248,652.58,651.56,1.83406831]
[1747816286802,1.248,652.58,651.57,0.64376022]
[1747816287005,1.248,652.58,651.58,0.64376022]
[1747816287307,1.248,652.58,651.54,0.54859584]
[1747816287709,1.248,652.58,651.59,0.54859584]
[1747816289005,1.248,652.58,651.6,0.54859584]
[1747816290306,1.248,652.58,651.61,0.54859584]
[1747816291813,1.248,652.58,651.62,0.54859584]
[1747816293120,1.248,652.58,651.63,0.54859584]
[1747816294310,1.248,652.58,651.47,1.642]
[1747816294311,1.248,652.58,651.64,0.54859584]
[1747816295510,1.248,652.58,651.65,0.54859584]
[1747816296515,1.248,652.58,651.47,1.642]
[1747816297815,1.248,652.58,651.48,2.44826155]
[1747816298720,1.248,652.58,651.49,1.83246949]
[1747816298913,1.248,652.58,651.5,0.64261334]
[1747816299118,1.248,652.58,651.51,0.64261334]
[1747816299317,1.248,652.58,651.52,1.83246949]
[1747816299518,1.248,652.58,651.53,0.64261334]
[1747816299716,1.248,652.58,651.54,0.64251767]
[1747816300020,1.248,652.58,651.55,1.18985615]
[1747816300422,1.248,652.58,651.5,0.54626155]
[1747816300622,1.248,652.58,651.51,1.83152501]
[1747816300819,1.248,652.58,651.52,0.642583]
[1747816301023,1.248,652.58,651.53,0.642583]
[1747816301227,1.248,652.58,651.54,1.18894201]
[1747816301826,1.248,652.58,651.52,1.18894201]
[1747816302421,1.248,652.58,651.53,0.54626155]
[1747816303728,1.248,652.58,651.49,0.54626155]
[1747816304028,1.248,652.58,651.5,1.18932722]
[1747816304225,1.248,652.58,651.49,0.54626155]
[1747816305324,1.248,652.58,651.5,1.1894751]
[1747816305828,1.248,652.58,651.49,0.54626155]
[1747816306026,1.248,652.58,651.5,0.64294209]
[1747816306230,1.248,652.58,651.51,0.64294209]
[1747816306429,1.248,652.58,651.52,0.64294209]
[1747816306632,1.248,652.58,651.53,1.83265188]
[1747816306825,1.248,652.58,651.53,1.18969014]
[1747816307229,1.248,652.58,651.54,0.54626155]
[1747816308127,1.248,652.58,651.49,0.54626155]
[1747816308344,1.248,652.58,651.5,0.64299717]
[1747816308528,1.248,652.58,651.51,1.8331729]
[1747816308727,1.248,652.58,651.52,0.64299717]
[1747816308932,1.248,652.58,651.52,1.8331729]
[1747816309132,1.248,652.58,651.53,1.8331729]
[1747816309426,1.248,652.58,651.54,0.64299717]
[1747816309631,1.248,652.58,651.54,2.37943445]
[1747816309927,1.248,652.58,651.55,1.19017573]
[1747816310732,1.248,652.58,651.56,0.54626155]
[1747816312735,1.248,652.58,651.49,0.54626155]
[1747816312936,1.248,652.58,651.5,1.83381595]
[1747816313233,1.248,652.58,651.51,0.64322837]
[1747816313432,1.248,652.58,651.52,0.64317749]
[1747816313634,1.248,652.58,651.53,0.64317749]
[1747816313834,1.248,652.58,651.54,1.83376507]
[1747816314030,1.248,652.58,651.55,0.64317749]
[1747816314536,1.248,652.58,651.56,0.64317749]
[1747816314736,1.248,652.58,651.54,0.54626155]
[1747816315035,1.248,652.58,651.55,0.6433543]